Cogmind - Beta 13 @@@ ROGUE MODE // 2024.04.11 @ 23:01:28 Player: Crud Result: Destroyed by as-70645 with Assembled Blade Performance ------------- Evolutions (0) 0 Regions Visited (2) 400 Robots Destroyed (22) 110 Value Destroyed (345) 345 Prototype IDs (4) 80 Alien Tech Used (0) 0 Bonus (0) 0 TOTAL SCORE: 935 Bonus ------- None Cogmind --------- Core Integrity 0/250 Matter 274/300 Energy 123/125 System Corruption 2% Temperature Cool (36) Movement Rolling (110) Ox2 Location -10/Mines Parts ------- > --- POWER (1) -------- Light Ion Engine > --- PROPULSION (2) --- Wheel > --- UTILITY (2) ------ Large Storage Unit Weapon Shielding > --- WEAPON (2) ------- Beam Cannon Assault Rifle > --- INVENTORY (15) --- Heat Sink Medium Matter Pod (100) High-capacity Matter Pod (175) Sensor Array Improved Terrain Scanner Seismic Detector Medium Laser Light Assault Rifle Peak State ------------ > --- POWER ------------ Light Ion Engine > --- PROPULSION ------- Wheel Wheel > --- UTILITY ---------- Large Storage Unit Medium Matter Pod > --- WEAPON ----------- Small Laser Assault Rifle > --- INVENTORY -------- Wheel Wheel Wheel Heat Sink Medium Matter Pod Improved Terrain Scanner Seismic Detector Medium Laser [Rating: 8] Favorites ----------- Power Light Ion Engine Engine Light Ion Engine Propulsion Wheel Leg Aluminum Leg Wheel Wheel Utility Large Storage Unit Device Heat Sink Storage Large Storage Unit Protection Weapon Shielding Weapon Medium Laser Energy Gun Medium Laser Energy Cannon Beam Cannon Ballistic Gun Assault Rifle Launcher Grenade Launcher Build | -11 -10 -10 ------- Run | Yrd Mat Min Slots Evolved . | . . . Power . | . . . Propulsion . | . . . Utility . | . . . Weapon . | . . . Parts Attached 24 | 11 9 4 Power 2 | 1 1 . Engine 2 | 1 1 . Core . | . . . Reactor . | . . . Propulsion 11 | 6 4 1 Treads . | . . . Leg 2 | 2 . . Wheel 9 | 4 4 1 Hover . | . . . Flight . | . . . Utility 4 | 2 1 1 Device 1 | 1 . . Storage 2 | 1 1 . Processor . | . . . Hackware . | . . . Protection 1 | . . 1 Artifact . | . . . Weapon 7 | 2 3 2 Energy Gun 2 | 1 1 . Energy Cannon 1 | . . 1 Ballistic Gun 3 | 1 1 1 Ballistic Cannon . | . . . Launcher 1 | . 1 . Special Weapon . | . . . Impact Weapon . | . . . Slashing Weapon . | . . . Piercing Weapon . | . . . Special Melee Weapon . | . . . Unidentified Prototypes . | . . . Parts Lost 10 | . 6 4 Power 1 | . 1 . Propulsion 5 | . 3 2 Utility 1 | . . 1 Weapon 3 | . 2 1 Highest Loss Streak 6 | . 6 3 To Critical Strikes . | . . . Average Slot Usage (%) 90 | . 90 89 Engine 10 | . 8 14 Wheel 24 | . 24 24 Storage 24 | . 27 16 Protection 2 | . . 10 Energy Gun 13 | . 14 13 Ballistic Gun 11 | . 13 7 Naked Turns . | . . . Heaviest Build 30 | 9 30 30 Greatest Support 20 | 20 20 20 Greatest Overweight (x) 2 | . 2 2 Average Overweight (x) . | . 1 1 Largest Inventory Capacity 15 | 5 15 15 Average Capacity 12 | 5 14 15 Most Carried 11 | 5 11 11 Average Carried 7 | 3 8 8 Final Capacity 15 | 5 15 15 Final Carried 10 | 5 10 8 Class Distribution -------------------- 73% | Mutant 26% | Scavenger-Mutant Dominant Class ---------------- Mutant | -10/Materials Mutant | -10/Mines Resources | -11 -10 -10 ----------- Run | Yrd Mat Min Matter Collected 898 | 449 308 141 Remotely . | . . . Salvage Created 557 | 122 279 156 Parts 39 | 11 19 9 Haulers Intercepted . | . . . Recyclers Shooed . | . . . Parts Field Recycled . | . . . Retrieved Matter . | . . . Parts Self-Destructed . | . . . Prevented . | . . . Kills | -11 -10 -10 ------- Run | Yrd Mat Min Combat Hostiles Destroyed 14 | 1 8 5 Guns 14 | 1 8 5 Classes Destroyed 6 | 3 2 1 Worker 4 | 1 3 . Tunneler 2 | 2 . . Watcher 2 | . 2 . Swarmer 9 | . 6 3 Grunt 3 | 1 2 . Sentry 2 | . . 2 Best Kill Streak 7 | 2 7 3 Combat Bots Only 3 | 1 3 3 Max Kills in Single Turn 2 | 1 1 2 Gunslinging 1 | . . 1 Exploded . | . . . Melee . | . . . Uniques/NPCs Destroyed . | . . . Combat | -11 -10 -10 -------- Run | Yrd Mat Min Hostile Shots Fired 106 | 6 63 37 Missed 22 | 2 11 9 Damage Taken 1079 | 44 626 409 Core 279 | 22 138 119 Absorbed by Shields . | . . . Redirected to Shielding 11 | . . 11 Core Remaining (%) 91 | 91 . . Volleys Fired 75 | 13 40 22 Largest 2 | 2 2 2 Hottest 80 | 60 70 80 Shots Fired 135 | 26 80 29 Gun 132 | 26 80 26 Cannon 3 | . . 3 Launcher . | . . . Special . | . . . Kinetic 60 | 13 40 7 Thermal 75 | 13 40 22 Explosive . | . . . Electromagnetic . | . . . Robot Hit Streak 8 | 7 7 8 Robot Miss Streak 5 | 4 4 5 Penetration Max . | . . . Secondary Targets 4 | . 3 1 Max Gunslinging Chain 1 | . 1 1 Shots Hit Robots 78 | 14 44 20 Core Hits 33 | 5 20 8 Critical Kills . | . . . Critical Parts Destroyed . | . . . Critical Strikes 2 | . 1 1 Burn 2 | . 1 1 Melee Attacks . | . . . Impact . | . . . Slashing . | . . . Piercing . | . . . Sneak Attacks . | . . . Combat Hostiles . | . . . Follow-up Attacks . | . . . Damage Inflicted 941 | 159 519 263 Guns 907 | 159 519 229 Cannons 34 | . . 34 Explosions . | . . . Melee . | . . . Ramming . | . . . Kinetic 307 | 60 194 53 Thermal 634 | 99 325 210 Explosive . | . . . Electromagnetic . | . . . Impact . | . . . Slashing . | . . . Piercing . | . . . Highest Corruption 2 | . 2 2 Average Corruption 2 | . 2 2 Corruption Purged . | . . . Corruption Blocked . | . . . Effects 8 | . 6 2 Message Errors 1 | . 1 . Matter Fused 2 | . 1 1 Energy Discharges 2 | . 2 . Parts Fused 1 | . 1 . Data Loss (minor) 1 | . 1 . Weapon Failures 1 | . . 1 Overload Shots . | . . . Overflow Damage . | . . . Projectiles . | . . . Explosions . | . . . Melee . | . . . Knockbacks . | . . . Impact . | . . . Kinetic . | . . . Secondary . | . . . Self-Inflicted Damage . | . . . Shots . | . . . Rammed . | . . . Targets Rammed . | . . . Kicked . | . . . Crushed . | . . . Highest Temperature 221 | 24 131 221 Average Temperature 57 | 18 58 72 Received Heat Transfer 324 | 24 201 99 Siege Activations . | . . . Robots Corrupted . | . . . Combat Hostiles . | . . . Parts Fried . | . . . Impact Corruptions . | . . . Robots Melted . | . . . Combat Hostiles . | . . . Parts Melted 6 | . 2 4 Heat Transferred 1833 | 225 942 666 Parts Sabotaged . | . . . Parts Stolen . | . . . Parts Stripped . | . . . Power Chain Reactions . | . . . Alert | -11 -10 -10 ------- Run | Yrd Mat Min Peak Influence 218 | 35 218 103 Initial 22 | . 22 8 Average 82 | 15 109 69 Maximum Alert Level 1 | . 1 . Low Security (%) 93 | 100 89 100 Level 1 6 | . 10 . Level 2 . | . . . Level 3 . | . . . Level 4 . | . . . Level 5 . | . . . High Security . | . . . Max Security . | . . . Squads Dispatched . | . . . Investigation . | . . . Extermination . | . . . Reinforcement . | . . . Assault . | . . . Garrison . | . . . Intercept . | . . . Searches Triggered . | . . . Construction Impeded . | . . . Haulers Reinforced . | . . . Active Scanning Responses . | . . . Cargo Convoy Interrupts . | . . . Stealth | -11 -10 -10 --------- Run | Yrd Mat Min Distress Signals . | . . . Communications Jammed . | . . . Distress Signals . | . . . Times Spotted 21 | 1 12 8 Peak Tracking Total 3 | 1 3 3 Tactical Retreats . | . . . Traps | -11 -10 -10 ------- Run | Yrd Mat Min Traps Triggered 5 | . 5 . Indirectly . | . . . Trap Hack Attempts . | . . . Triggered . | . . . Disarmed . | . . . Reprogrammed . | . . . Reused . | . . . Traps Extracted . | . . . Installed . | . . . Triggered . | . . . Machines | -11 -10 -10 ---------- Run | Yrd Mat Min Machines Disabled . | . . . Max in Single Turn . | . . . Machines Repaired . | . . . Machines Dismantled . | . . . Machines Sabotaged . | . . . Overloaded Fab Kills . | . . . Hacking | -11 -10 -10 --------- Run | Yrd Mat Min Machines Accessed 4 | . 4 . Terminals 4 | . 4 . Fabricators . | . . . Repair Stations . | . . . Recycling Units . | . . . Scanalyzers . | . . . Garrison Access . | . . . Total Hacks 15 | . 15 . Successful 11 | . 11 . Failed 4 | . 4 . Catastrophic . | . . . Database Lockouts . | . . . Manual 4 | . 4 . Terminals 15 | . 15 . Fabricators . | . . . Repair Stations . | . . . Recycling Units . | . . . Scanalyzers . | . . . Garrison Access . | . . . Terminal Hacks 8 | . 8 . Record 2 | . 2 . Robot Analysis 1 | . 1 . Prototype ID Bank 2 | . 2 . Alert Level 1 | . 1 . Locate Traps 1 | . 1 . Dispatch Records 1 | . 1 . Fabricator Hacks . | . . . Repair Station Hacks . | . . . Recycling Unit Hacks . | . . . Scanalyzer . | . . . Garrison Access Hacks . | . . . Unauthorized Hacks 3 | . 3 . Terminals 3 | . 3 . Track 2 | . 2 . Botnet 1 | . 1 . Fabricators . | . . . Repair Stations . | . . . Recycling Units . | . . . Scanalyzers . | . . . Garrison Access . | . . . Data Cores Recovered . | . . . Used . | . . . Hacking Detections 3 | . 3 . Full Trace Events . | . . . Feedback Events . | . . . Feedback Blocked . | . . . Robot Schematics Acquired . | . . . Robots Built . | . . . Authchips . | . . . Time . | . . . Total Robot Build Rating . | . . . Part Schematics Acquired . | . . . Parts Built . | . . . Authchips . | . . . Time . | . . . Total Part Build Rating . | . . . Parts Repaired . | . . . Time . | . . . Parts Recycled . | . . . Recycled Matter . | . . . Retrieved Matter . | . . . Retrieved Components . | . . . Parts Scanalyzed . | . . . Part Schematics Acquired . | . . . Parts Damaged . | . . . Bothacking | -11 -10 -10 ------------ Run | Yrd Mat Min Used RIF Installer . | . . . Robots Hacked . | . . . Non-combat . | . . . Combat . | . . . Robot Hacks Applied . | . . . Relay Couplers Released . | . . . Fabnet Peak Effective % . | . . . Robots Rewired . | . . . Allies Hacked . | . . . Hacks Repelled . | . . . Allies | -11 -10 -10 -------- Run | Yrd Mat Min Total Allies . | . . . Largest Group . | . . . Highest-Rated Group . | . . . Highest-Rated Ally . | . . . Total Orders . | . . . Ally Attacks . | . . . Total Damage . | . . . Kills . | . . . Allies Corrupted . | . . . Allies Melted . | . . . Intel | -11 -10 -10 ------- Run | Yrd Mat Min Robot Analysis Total 1 | . 1 . Derelict Logs Recovered 1 | . . 1 Drone Launches . | . . . Drone Recoveries . | . . . Exploration | -11 -10 -10 ------------- Run | Yrd Mat Min Turns Passed 821 | 159 487 175 Spaces Moved 567 | 110 338 119 Core 34 | 34 . . Treads . | . . . Legs 30 | 30 . . Wheels 503 | 46 338 119 Hover . | . . . Flight . | . . . Fastest Speed 50 | 50 80 95 Average Speed 94 | 81 96 99 Slowest Speed 120 | 120 110 110 Overloaded Moves . | . . . Propulsion Burnouts . | . . . Robots Hopped . | . . . Cave-ins Triggered . | . . . Exploration Rate (%) 37 | 7 58 47 Regions Visited 2 Branch Regions 1 Pre-discovered Areas . | . . . Known Exits Taken . | . . . Unknown Exits Taken 2 | 1 1 . Scrap Searched . | . . . Spaces Dug . | . . . Terrain Destroyed . | . . . Melee . | . . . Projectile . | . . . AOE . | . . . Terrain Rammed . | . . . Walls Destroyed . | . . . Machines Disabled . | . . . Actions | -11 -10 -10 --------- Run | Yrd Mat Min Total 720 | 151 422 147 Wait 21 | . 20 1 Move 565 | 109 337 119 Hop . | . . . Pick Up 28 | 14 13 1 Fast Attach 3 | 2 1 . Attach 14 | 5 6 3 Detach . | . . . Swap 7 | 4 2 1 Drop 7 | 4 3 . Fire 75 | 13 40 22 Melee . | . . . Ram . | . . . Kick . | . . . Crush . | . . . Escape Stasis . | . . . Rewire . | . . . Trap . | . . . Miscellaneous . | . . . Route ------- -11/Scrapyard -10/Materials (discovered 2 exits: [*Mat] / [*Min]) -10/Mines History --------- Turn | Location | Event 2 | -11/Scrapyard | Met Revision 17 69 | -11/Scrapyard | Discovered new exit (range 8) 160 | -11/Scrapyard | Entered Materials 309 | -10/Materials | Build established: Mutant 385 | -10/Materials | Lost 6 parts (1p3n2w) 476 | -10/Materials | Core integrity fell below 50% 531 | -10/Materials | Discovered new exit (range 3) 638 | -10/Materials | Discovered new exit (range 10) 647 | -10/Materials | Entered Mines 669 | -10/Mines | Core integrity fell below 20% 709 | -10/Mines | Lost 3 parts (1n1u1w) 786 | -10/Mines | Learned Materials trap positions 791 | -10/Mines | Assembled infested the area 796 | -10/Mines | Assisted by a Guerilla fighting off Assembled 822 | -10/Mines | Destroyed by as-70645 with Assembled Blade Last Messages --------------- 00786_ Acquired derelict log, extracted data. Data stored: Materials trap records. 00788_ K-01 Serf collects debris. 00791_ ALERT: Infestation in the mines, dispatching Demolisher response squad. 00792_ K-01 Serf collects debris. 00796_ A derelict emerges from the shadows: "You need to get out of here! I've been tracking a group of Assembled to figure out where they're coming from, and they're closing on this area, come on!" 00796_ K-01 Serf collects debris. 00799_ HV Slug penetrates as-79495. 00799_ as-79495 suffers critical hit (Destroy). 00799_ as-79495 knocked back. 00800_ K-01 Serf collects debris. 00808_ System corrupted: Matter fused (-10). 00817_ HV Slug penetrates Wall. 00820_ Wheel destroyed. 00821_ System corrupted: Assault Rifle jammed. Map ----- +----------------------------------------------------+ | ????????????????????????????????????????????? | | ????????????????????????????????????????????? | | ????????????????????????????????????????????? | | ????????????????????????????????????????????? | | ????????????????????????????????????????????? | | ????????????????????????????????????????????? | | ????????????????????????????????????????????? | | ????????????????????????????????????????????? | | ????????????????????????????????????????????? | | ????????????????????????????????????????????? | | ????????????????????????????????????????????? | | ????????????????????????????????????????????? | | ????????????????????????????????????????????? | | ????????????????????????????????????????????? | | ?????????? ?????????????????????????????????? | | ????????? ?????????????????????????????????? | | ????????? ?????????????????????????????????? | | ????????? #?????????????????????????????????? | | ####????? ##????????????????????????????????? | | #???? ##???????????####????????????????? | | #???? ##?????????## ##???????????????? | | # #???? #?????????# #???????????????? | | # #???# #?????????# ##??????????????? | | # #### #??????????# ##?????????????? | | #???????????# ###???????????? | | #????????????##@a ##??????????? | | # ###?????????????### #??????????? | | ## ##?????????????????## #??????????? | | ?# ##?????????????????## #??????????? | | ?## #???####?????????## ;;#????????? | | ??## ##?## ####??????# ##????????? | | ???## ### #??????# #?????????? | | ????# #??????## #?????????? | | ????# #???????## #?????????? | | ????## ##???????# ##????????? | | ?????#### ##??????# ##???????? | | ????????######## ##?????# ##??????? | | ???????????????## ##????## #??????? | | ????????????????# #????## #??????? | | ???????????????## #?#### ##??????? | | ??????????????## ### ##???????? | | ??????????????# ##????????? | | ??????????????# ##?????????? | | ??????????????# ##### ### #??? | | ?????????????# ##???# % #???? | | ??????????? #???# ##???? | | ????????? """ #??# #????? | | ????????? """ #????? | | ????????# ???"" ### % ##????? | | ????????????? ##### ##??# ##?????? | +----------------------------------------------------+ Best States ------------- Heat Dissipation 35 Energy Generation 10 Energy Capacity 125 Matter Stores 400 Matter Capacity 400 Sight Range 16 Terrain Scan Density 10 Weapon Shielding 33 Evasion (%) 55 Item Schematics ----------------- None Robot Schematics ------------------ None Fabricated ------------ Nothing Alien Tech Used ----------------- None Achievements -------------- None Challenges ------------ None Game ------ Seed ReinforcedReflectiveKatana Manual? 0 Play Time 00:18:50 Cumulative 33.3 hours Start 2024.04.11 @ 22:44:10 End 2024.04.11 @ 23:01:28 Sessions 1 Manual Loads 0 Difficulty Rogue Special Mode None Game No. 38 Rogue 38 Adventurer 0 Explorer 0 Win Type - Total 0 Types 0/0/0/0/0/0/0/0/0 Lore% 32 Gallery% 35 Achievement% 28 Wizard Run 0 Options --------- Layout 1 ASCII 0 Keyboard 0 Movement Arrows Keybinds 0 Fullscreen 1 Font 16/SmallcapsGlow Map View 50x40 Zoom Use 69% Tactical HUD 1 Map Filters NONE Filters NONE Steam SD RUN: 6de1428f-57d7-4f33-833e-aae0793cd422